[Event "Titled Tuesday Blitz June 22 2021"]
[White "Balakrishnan, Praveen"]
[Black "Zubov, Alexander"]
[WhiteFideId "2064871"]
[BlackFideId "14109409"]
[WhiteElo "2237"]
[BlackElo "2740"]
[Result "1/2-1/2"]
[Round "10"]
[TimeControl "180+1"]
[Date "2021.06.22"]
[WhiteClock "0:00:04"]
[BlackClock "0:00:06"]

1. Nf3 {[%clk 0:02:58]}  Nf6 {[%clk 0:02:58]} 2. b3 {[%clk 0:02:51]}  g6 {[%clk 0:02:56]} 3. Bb2 {[%clk 0:02:51]}  Bg7 {[%clk 0:02:56]} 4. d4 {[%clk 0:02:50]}  c5 {[%clk 0:02:49]} 5. dxc5 {[%clk 0:02:46]}  Na6 {[%clk 0:02:48]} 6. g3 {[%clk 0:02:35]}  Nxc5 {[%clk 0:02:48]} 7. Bg2 {[%clk 0:02:35]}  O-O {[%clk 0:02:44]} 8. O-O {[%clk 0:02:34]}  b6 {[%clk 0:02:29]} 9. c4 {[%clk 0:02:32]}  Bb7 {[%clk 0:02:28]} 10. Nc3 {[%clk 0:02:31]}  d6 {[%clk 0:02:28]} 11. Qc2 {[%clk 0:02:25]}  Rc8 {[%clk 0:02:27]} 12. Rfd1 {[%clk 0:02:24]}  a6 {[%clk 0:02:26]} 13. Rac1 {[%clk 0:02:21]}  Qe8 {[%clk 0:02:22]} 14. Qb1 {[%clk 0:02:13]}  b5 {[%clk 0:02:20]} 15. Nd5 {[%clk 0:02:02]}  bxc4 {[%clk 0:01:43]} 16. bxc4 {[%clk 0:02:03]}  Bxd5 {[%clk 0:01:31]} 17. cxd5 {[%clk 0:01:57]}  Rb8 {[%clk 0:01:30]} 18. Qa1 {[%clk 0:01:52]}  Qa4 {[%clk 0:01:23]} 19. Bd4 {[%clk 0:01:47]}  Rfc8 {[%clk 0:01:18]} 20. Rb1 {[%clk 0:01:43]}  Qc4 {[%clk 0:01:09]} 21. e3 {[%clk 0:01:20]}  Nce4 {[%clk 0:00:57]} 22. Bf1 {[%clk 0:01:10]}  Qc2 {[%clk 0:00:53]} 23. Rxb8 {[%clk 0:00:31]}  Qxf2+ {[%clk 0:00:50]} 24. Kh1 {[%clk 0:00:32]}  Rxb8 {[%clk 0:00:41]} 25. Bg2 {[%clk 0:00:28]}  Qe2 {[%clk 0:00:26]} 26. Re1 {[%clk 0:00:27]}  Qc4 {[%clk 0:00:24]} 27. Rb1 {[%clk 0:00:21]}  Rc8 {[%clk 0:00:23]} 28. Qb2 {[%clk 0:00:17]}  Bh6 {[%clk 0:00:20]} 29. Qb7 {[%clk 0:00:14]}  Nxd5 {[%clk 0:00:17]} 30. Nd2 {[%clk 0:00:12]}  Nxd2 {[%clk 0:00:13]} 31. Bxd5 {[%clk 0:00:12]}  Qc2 {[%clk 0:00:12]} 32. Rg1 {[%clk 0:00:08]}  Bg7 {[%clk 0:00:11]} 33. Bxg7 {[%clk 0:00:06]}  Kxg7 {[%clk 0:00:11]} 34. Qxe7 {[%clk 0:00:07]}  Qf5 {[%clk 0:00:10]} 35. Qxd6 {[%clk 0:00:05]}  Rc2 {[%clk 0:00:07]} 36. Bg2 {[%clk 0:00:04]}  Qf6 {[%clk 0:00:03]} 37. Qxf6+ {[%clk 0:00:03]}  Kxf6 {[%clk 0:00:04]} 38. a3 {[%clk 0:00:02]}  Ra2 {[%clk 0:00:04]} 39. Rd1 {[%clk 0:00:02]}  Ke5 {[%clk 0:00:04]} 40. Re1 {[%clk 0:00:03]}  Rxa3 {[%clk 0:00:04]} 41. Rc1 {[%clk 0:00:03]}  Rxe3 {[%clk 0:00:02]} 42. Kg1 {[%clk 0:00:03]}  Ne4 {[%clk 0:00:01]} 43. Ra1 {[%clk 0:00:03]}  Nc3 {[%clk 0:00:01]} 44. Rxa6 {[%clk 0:00:03]}  f5 {[%clk 0:00:01]} 45. Kf2 {[%clk 0:00:03]}  Re2+ {[%clk 0:00:02]} 46. Kg1 {[%clk 0:00:04]}  Rc2 {[%clk 0:00:02]} 47. Ra5+ {[%clk 0:00:04]}  Kd4 {[%clk 0:00:02]} 48. Ra7 {[%clk 0:00:05]}  Ke3 {[%clk 0:00:02]} 49. Re7+ {[%clk 0:00:04]}  Ne4 {[%clk 0:00:03]} 50. h3 {[%clk 0:00:04]}  Rc1+ {[%clk 0:00:03]} 51. Kh2 {[%clk 0:00:05]}  h5 {[%clk 0:00:02]} 52. Re6 {[%clk 0:00:05]}  g5 {[%clk 0:00:03]} 53. Re5 {[%clk 0:00:05]}  Kd4 {[%clk 0:00:03]} 54. Rxf5 {[%clk 0:00:05]}  Nd2 {[%clk 0:00:03]} 55. Rxg5 {[%clk 0:00:05]}  Rc2 {[%clk 0:00:04]} 56. Rf5 {[%clk 0:00:05]}  Ke3 {[%clk 0:00:03]} 57. Re5+ {[%clk 0:00:05]}  Kd4 {[%clk 0:00:03]} 58. Re2 {[%clk 0:00:05]}  Kd3 {[%clk 0:00:04]} 59. Rf2 {[%clk 0:00:05]}  Ke3 {[%clk 0:00:04]} 60. Rf4 {[%clk 0:00:05]}  h4 {[%clk 0:00:04]} 61. Rf8 {[%clk 0:00:05]}  Ne4 {[%clk 0:00:03]} 62. gxh4 {[%clk 0:00:04]}  Nf2 {[%clk 0:00:03]} 63. Re8+ {[%clk 0:00:04]}  Kf4 {[%clk 0:00:03]} 64. Rf8+ {[%clk 0:00:04]}  Ke5 {[%clk 0:00:04]} 65. Rf3 {[%clk 0:00:04]}  Nd1 {[%clk 0:00:03]} 66. Rf1 {[%clk 0:00:04]}  Ne3 {[%clk 0:00:03]} 67. Rg1 {[%clk 0:00:03]}  Kf4 {[%clk 0:00:04]} 68. Kh1 {[%clk 0:00:03]}  Rd2 {[%clk 0:00:03]} 69. Bf1 {[%clk 0:00:02]}  Nf5 {[%clk 0:00:03]} 70. Bg2 {[%clk 0:00:02]}  Ng3+ {[%clk 0:00:03]} 71. Kh2 {[%clk 0:00:02]}  Ne2 {[%clk 0:00:03]} 72. Rf1+ {[%clk 0:00:02]}  Ke3 {[%clk 0:00:04]} 73. Rf3+ {[%clk 0:00:03]}  Kd4 {[%clk 0:00:04]} 74. Rf2 {[%clk 0:00:03]}  Ke3 {[%clk 0:00:05]} 75. Rf3+ {[%clk 0:00:04]}  Kd4 {[%clk 0:00:05]} 76. Rf8 {[%clk 0:00:04]}  Ke3 {[%clk 0:00:04]} 77. h5 {[%clk 0:00:04]}  Nf4 {[%clk 0:00:04]} 78. Re8+ {[%clk 0:00:03]}  Kf2 {[%clk 0:00:04]} 79. Rf8 {[%clk 0:00:04]}  Ke3 {[%clk 0:00:04]} 80. Rg8 {[%clk 0:00:04]}  Nxh5 {[%clk 0:00:04]} 81. h4 {[%clk 0:00:04]}  Nf4 {[%clk 0:00:04]} 82. Rg3+ {[%clk 0:00:04]}  Kd4 {[%clk 0:00:04]} 83. Rg4 {[%clk 0:00:04]}  Ke5 {[%clk 0:00:04]} 84. Rg5+ {[%clk 0:00:05]}  Kf6 {[%clk 0:00:04]} 85. Rg4 {[%clk 0:00:05]}  Kf5 {[%clk 0:00:05]} 86. Rg5+ {[%clk 0:00:06]}  Kf6 {[%clk 0:00:05]} 87. Rg4 {[%clk 0:00:06]}  Ne6 {[%clk 0:00:05]} 88. Rg3 {[%clk 0:00:06]}  Nd4 {[%clk 0:00:05]} 89. Rg4 {[%clk 0:00:06]}  Nf5 {[%clk 0:00:05]} 90. Rf4 {[%clk 0:00:06]}  Ke5 {[%clk 0:00:05]} 91. Rg4 {[%clk 0:00:06]}  Ne3 {[%clk 0:00:05]} 92. Rg8 {[%clk 0:00:06]}  Kf4 {[%clk 0:00:03]} 93. Rg7 {[%clk 0:00:06]}  Ng4+ {[%clk 0:00:03]} 94. Kg1 {[%clk 0:00:04]}  Rd1+ {[%clk 0:00:03]} 95. Bf1 {[%clk 0:00:05]}  Ne3 {[%clk 0:00:03]} 96. Rf7+ {[%clk 0:00:05]}  Kg3 {[%clk 0:00:03]} 97. Rg7+ {[%clk 0:00:06]}  Kf3 {[%clk 0:00:03]} 98. Rf7+ {[%clk 0:00:06]}  Kg3 {[%clk 0:00:03]} 99. Rg7+ {[%clk 0:00:06]}  Kxh4 {[%clk 0:00:04]} 100. Rh7+ {[%clk 0:00:06]}  Kg5 {[%clk 0:00:04]} 101. Rg7+ {[%clk 0:00:06]}  Kf6 {[%clk 0:00:04]} 102. Rg3 {[%clk 0:00:05]}  Rxf1+ {[%clk 0:00:04]} 103. Kh2 {[%clk 0:00:06]}  Nf5 {[%clk 0:00:05]} 104. Rg1 {[%clk 0:00:06]}  Rf4 {[%clk 0:00:05]} 105. Ra1 {[%clk 0:00:06]}  Kg5 {[%clk 0:00:05]} 106. Kg2 {[%clk 0:00:06]}  Rb4 {[%clk 0:00:05]} 107. Ra2 {[%clk 0:00:06]}  Rb3 {[%clk 0:00:06]} 108. Rd2 {[%clk 0:00:05]}  Kf4 {[%clk 0:00:06]} 109. Rf2+ {[%clk 0:00:05]}  Kg4 {[%clk 0:00:06]} 110. Ra2 {[%clk 0:00:06]}  Nh4+ {[%clk 0:00:05]} 111. Kf2 {[%clk 0:00:07]}  Ng6 {[%clk 0:00:05]} 112. Ke2 {[%clk 0:00:07]}  Nf4+ {[%clk 0:00:05]} 113. Kd2 {[%clk 0:00:07]}  Kf3 {[%clk 0:00:06]} 114. Ra8 {[%clk 0:00:07]}  Ke4 {[%clk 0:00:05]} 115. Kc2 {[%clk 0:00:08]}  Rf3 {[%clk 0:00:05]} 116. Kd2 {[%clk 0:00:08]}  Rf2+ {[%clk 0:00:05]} 117. Kc3 {[%clk 0:00:08]}  Nd5+ {[%clk 0:00:05]} 118. Kc4 {[%clk 0:00:09]}  Rc2+ {[%clk 0:00:05]} 119. Kb3 {[%clk 0:00:09]}  Rc7 {[%clk 0:00:06]} 120. Rd8 {[%clk 0:00:08]}  Kd4 {[%clk 0:00:06]} 121. Rh8 {[%clk 0:00:08]}  Rb7+ {[%clk 0:00:06]} 122. Kc2 {[%clk 0:00:08]}  Ne3+ {[%clk 0:00:07]} 123. Kd2 {[%clk 0:00:07]}  Rb2+ {[%clk 0:00:07]} 124. Kc1 {[%clk 0:00:08]}  Rf2 {[%clk 0:00:06]} 125. Rc8 {[%clk 0:00:07]}  Kd3 {[%clk 0:00:06]} 126. Rd8+ {[%clk 0:00:06]}  Kc3 {[%clk 0:00:07]} 127. Rc8+ {[%clk 0:00:06]}  Nc4 {[%clk 0:00:05]} 128. Kd1 {[%clk 0:00:07]}  Rf7 {[%clk 0:00:05]} 129. Ke2 {[%clk 0:00:07]}  Re7+ {[%clk 0:00:06]} 130. Kf3 {[%clk 0:00:08]}  Rd7 {[%clk 0:00:05]} 131. Ke4 {[%clk 0:00:06]}  Rd4+ {[%clk 0:00:03]} 132. Kf3 {[%clk 0:00:07]}  Kd3 {[%clk 0:00:04]} 133. Re8 {[%clk 0:00:06]}  Nd2+ {[%clk 0:00:04]} 134. Kf2 {[%clk 0:00:05]}  Ne4+ {[%clk 0:00:05]} 135. Kf3 {[%clk 0:00:06]}  Nd6 {[%clk 0:00:05]} 136. Re3+ {[%clk 0:00:06]}  Kc4 {[%clk 0:00:06]} 137. Re1 {[%clk 0:00:06]}  Kd5 {[%clk 0:00:06]} 138. Re7 {[%clk 0:00:05]}  Kc5 {[%clk 0:00:05]} 139. Re5+ {[%clk 0:00:05]}  Kc4 {[%clk 0:00:05]} 140. Re7 {[%clk 0:00:05]}  Rd3+ {[%clk 0:00:05]} 141. Re3 {[%clk 0:00:05]}  Rd2 {[%clk 0:00:05]} 142. Re2 {[%clk 0:00:05]}  Rd1 {[%clk 0:00:06]} 143. Re6 {[%clk 0:00:05]}  Nb5 {[%clk 0:00:06]} 144. Re4+ {[%clk 0:00:05]}  Nd4+ {[%clk 0:00:06]} 145. Kg4 {[%clk 0:00:04]}  Kd5 {[%clk 0:00:06]} 146. Re3 {[%clk 0:00:04]}  Rf1 {[%clk 0:00:05]} 147. Ra3 {[%clk 0:00:04]}  Ne6 {[%clk 0:00:05]} 148. Kh5 {[%clk 0:00:04]}  Ke5 {[%clk 0:00:05]} 149. Kg6 {[%clk 0:00:04]}  Rg1+ {[%clk 0:00:05]} 150. Kf7 {[%clk 0:00:04]}  Rg7+ {[%clk 0:00:05]} 151. Ke8 {[%clk 0:00:05]}  Rb7 {[%clk 0:00:06]} 152. Re3+ {[%clk 0:00:04]}  Kd5 {[%clk 0:00:06]} 1/2-1/2


[Site "https://www.chess.com"]

[Event "Titled Tuesday Blitz June 22 2021"]
[White "Djordjevic, Vuk"]
[Black "Siva Mahadevan"]
[WhiteFideId "902098"]
[BlackFideId "25043153"]
[WhiteElo "2463"]
[BlackElo "2203"]
[Result "1-0"]
[Round "10"]
[TimeControl "180+1"]
[Date "2021.06.22"]
[WhiteClock "0:02:49"]
[BlackClock "0:02:27"]

1. d4 {[%clk 0:03:00]}  Nf6 {[%clk 0:02:55]} 2. Bg5 {[%clk 0:03:01]}  Ne4 {[%clk 0:02:55]} 3. Bf4 {[%clk 0:03:01]}  c5 {[%clk 0:02:55]} 4. f3 {[%clk 0:03:01]}  Qa5+ {[%clk 0:02:55]} 5. c3 {[%clk 0:03:01]}  Nf6 {[%clk 0:02:56]} 6. d5 {[%clk 0:03:00]}  Qb6 {[%clk 0:02:55]} 7. Bc1 {[%clk 0:02:59]}  e6 {[%clk 0:02:42]} 8. e4 {[%clk 0:02:59]}  exd5 {[%clk 0:02:42]} 9. exd5 {[%clk 0:03:00]}  Bd6 {[%clk 0:02:42]} 10. Na3 {[%clk 0:02:56]}  O-O {[%clk 0:02:38]} 11. Bd3 {[%clk 0:02:56]}  Re8+ {[%clk 0:02:37]} 12. Ne2 {[%clk 0:02:55]}  Bf8 {[%clk 0:02:32]} 13. Nc4 {[%clk 0:02:53]}  d6 {[%clk 0:02:27]} 14. Nxb6 {[%clk 0:02:49]} 1-0


[Site "https://www.chess.com"]

[Event "Titled Tuesday Blitz June 22 2021"]
[White "Donchenko, Alexander"]
[Black "Wong, Yinn Long"]
[WhiteFideId "24603295"]
[BlackFideId "5707684"]
[WhiteElo "2553"]
[BlackElo "2016"]
[Result "1-0"]
[Round "10"]
[TimeControl "180+1"]
[Date "2021.06.22"]
[WhiteClock "0:00:31"]
[BlackClock "0:00:05"]

1. Nf3 {[%clk 0:03:00]}  c5 {[%clk 0:03:00]} 2. c4 {[%clk 0:03:00]}  g6 {[%clk 0:03:00]} 3. d4 {[%clk 0:03:00]}  cxd4 {[%clk 0:03:00]} 4. Nxd4 {[%clk 0:03:01]}  Nc6 {[%clk 0:03:00]} 5. e4 {[%clk 0:03:01]}  Nf6 {[%clk 0:02:58]} 6. Nc3 {[%clk 0:03:01]}  d6 {[%clk 0:02:59]} 7. Be2 {[%clk 0:03:01]}  Nxd4 {[%clk 0:02:59]} 8. Qxd4 {[%clk 0:03:01]}  Bg7 {[%clk 0:03:00]} 9. Be3 {[%clk 0:03:01]}  O-O {[%clk 0:03:00]} 10. Qd2 {[%clk 0:03:02]}  a5 {[%clk 0:03:01]} 11. O-O {[%clk 0:03:02]}  a4 {[%clk 0:03:01]} 12. Rfd1 {[%clk 0:02:59]}  Be6 {[%clk 0:02:54]} 13. Bd4 {[%clk 0:02:53]}  Nd7 {[%clk 0:02:48]} 14. Bxg7 {[%clk 0:02:50]}  Kxg7 {[%clk 0:02:49]} 15. Rac1 {[%clk 0:02:48]}  Qb6 {[%clk 0:02:45]} 16. Qd4+ {[%clk 0:02:30]}  Qxd4 {[%clk 0:02:42]} 17. Rxd4 {[%clk 0:02:31]}  Rfc8 {[%clk 0:02:41]} 18. f4 {[%clk 0:02:28]}  Nb6 {[%clk 0:02:31]} 19. Nb5 {[%clk 0:02:21]}  Rc5 {[%clk 0:02:29]} 20. Kf2 {[%clk 0:02:18]}  Rac8 {[%clk 0:02:28]} 21. Na3 {[%clk 0:02:17]}  Nd7 {[%clk 0:02:01]} 22. Rcd1 {[%clk 0:02:08]}  Nb6 {[%clk 0:01:58]} 23. Rc1 {[%clk 0:02:07]}  Nd7 {[%clk 0:01:57]} 24. Rc3 {[%clk 0:02:06]}  Nb6 {[%clk 0:01:37]} 25. Ke3 {[%clk 0:01:59]}  f6 {[%clk 0:01:28]} 26. h4 {[%clk 0:01:49]}  h6 {[%clk 0:01:17]} 27. g4 {[%clk 0:01:45]}  g5 {[%clk 0:01:16]} 28. f5 {[%clk 0:01:45]}  Bf7 {[%clk 0:01:14]} 29. h5 {[%clk 0:01:44]}  Nd7 {[%clk 0:01:09]} 30. Rd1 {[%clk 0:01:36]}  Ne5 {[%clk 0:01:09]} 31. Rdc1 {[%clk 0:01:36]}  Kf8 {[%clk 0:01:08]} 32. b4 {[%clk 0:01:32]}  axb3 {[%clk 0:01:05]} 33. axb3 {[%clk 0:01:33]}  Ra8 {[%clk 0:00:51]} 34. b4 {[%clk 0:01:25]}  Rcc8 {[%clk 0:00:51]} 35. c5 {[%clk 0:01:11]}  dxc5 {[%clk 0:00:35]} 36. bxc5 {[%clk 0:01:12]}  Ra5 {[%clk 0:00:32]} 37. Nb5 {[%clk 0:01:09]}  Nxg4+ {[%clk 0:00:31]} 38. Bxg4 {[%clk 0:01:00]}  Rxb5 {[%clk 0:00:31]} 39. e5 {[%clk 0:01:01]}  fxe5 {[%clk 0:00:25]} 40. f6 {[%clk 0:00:57]}  Rc7 {[%clk 0:00:26]} 41. fxe7+ {[%clk 0:00:56]}  Kxe7 {[%clk 0:00:26]} 42. Bf5 {[%clk 0:00:53]}  Be6 {[%clk 0:00:23]} 43. Ke4 {[%clk 0:00:47]}  Kf6 {[%clk 0:00:16]} 44. Bg6 {[%clk 0:00:48]}  Rb4+ {[%clk 0:00:17]} 45. Ke3 {[%clk 0:00:48]}  Rf4 {[%clk 0:00:15]} 46. Rb1 {[%clk 0:00:44]}  g4 {[%clk 0:00:13]} 47. Rb6 {[%clk 0:00:44]}  Rf3+ {[%clk 0:00:13]} 48. Kd2 {[%clk 0:00:44]}  Rxc3 {[%clk 0:00:14]} 49. Kxc3 {[%clk 0:00:45]}  Rxc5+ {[%clk 0:00:14]} 50. Kd3 {[%clk 0:00:44]}  Rc7 {[%clk 0:00:11]} 51. Ke3 {[%clk 0:00:43]}  Rc3+ {[%clk 0:00:08]} 52. Ke4 {[%clk 0:00:42]}  Rc4+ {[%clk 0:00:08]} 53. Ke3 {[%clk 0:00:42]}  Rc6 {[%clk 0:00:08]} 54. Rxb7 {[%clk 0:00:42]}  Kg5 {[%clk 0:00:07]} 55. Rb5 {[%clk 0:00:39]}  Kh4 {[%clk 0:00:05]} 56. Rxe5 {[%clk 0:00:38]}  g3 {[%clk 0:00:04]} 57. Kf3 {[%clk 0:00:37]}  Bg4+ {[%clk 0:00:04]} 58. Kg2 {[%clk 0:00:37]}  Rc2+ {[%clk 0:00:04]} 59. Bxc2 {[%clk 0:00:37]}  Bh3+ {[%clk 0:00:04]} 60. Kg1 {[%clk 0:00:36]}  Bg4 {[%clk 0:00:05]} 61. Bd3 {[%clk 0:00:35]}  Kh3 {[%clk 0:00:05]} 62. Be2 {[%clk 0:00:33]}  Bd7 {[%clk 0:00:05]} 63. Rd5 {[%clk 0:00:31]}  Be6 {[%clk 0:00:05]} 64. Rd6 {[%clk 0:00:31]} 1-0


[Site "https://www.chess.com"]

[Event "Titled Tuesday Blitz June 22 2021"]
[White "Indjic, Aleksandar"]
[Black "Kollars, Dmitrij"]
[WhiteFideId "911925"]
[BlackFideId "12909572"]
[WhiteElo "2643"]
[BlackElo "2576"]
[Result "1-0"]
[Round "10"]
[TimeControl "180+1"]
[Date "2021.06.22"]
[WhiteClock "0:00:05"]
[BlackClock "0:00:02"]

1. b3 {[%clk 0:03:00]}  e5 {[%clk 0:02:59]} 2. Bb2 {[%clk 0:03:00]}  Nc6 {[%clk 0:03:00]} 3. e3 {[%clk 0:03:00]}  Nf6 {[%clk 0:02:59]} 4. Bb5 {[%clk 0:03:00]}  Bd6 {[%clk 0:02:59]} 5. Na3 {[%clk 0:03:00]}  Be7 {[%clk 0:02:58]} 6. Ne2 {[%clk 0:02:38]}  O-O {[%clk 0:02:56]} 7. Ng3 {[%clk 0:02:36]}  d6 {[%clk 0:02:44]} 8. Bxc6 {[%clk 0:02:16]}  bxc6 {[%clk 0:02:44]} 9. d3 {[%clk 0:02:15]}  a5 {[%clk 0:02:41]} 10. Nc4 {[%clk 0:02:13]}  a4 {[%clk 0:02:41]} 11. O-O {[%clk 0:02:13]}  Bg4 {[%clk 0:02:39]} 12. Qe1 {[%clk 0:02:11]}  h5 {[%clk 0:02:38]} 13. h3 {[%clk 0:02:07]}  Be6 {[%clk 0:02:38]} 14. e4 {[%clk 0:02:07]}  h4 {[%clk 0:02:26]} 15. Nf5 {[%clk 0:01:54]}  Bxf5 {[%clk 0:02:08]} 16. exf5 {[%clk 0:01:55]}  axb3 {[%clk 0:01:59]} 17. axb3 {[%clk 0:01:54]}  Rxa1 {[%clk 0:02:00]} 18. Bxa1 {[%clk 0:01:54]}  Nd5 {[%clk 0:01:56]} 19. Ne3 {[%clk 0:01:16]}  Nf4 {[%clk 0:01:55]} 20. Qd1 {[%clk 0:01:15]}  Bg5 {[%clk 0:01:35]} 21. Kh2 {[%clk 0:01:15]}  Nd5 {[%clk 0:01:24]} 22. Nxd5 {[%clk 0:01:12]}  cxd5 {[%clk 0:01:25]} 23. Qf3 {[%clk 0:01:11]}  d4 {[%clk 0:01:18]} 24. Bb2 {[%clk 0:01:11]}  Qf6 {[%clk 0:01:15]} 25. Ra1 {[%clk 0:01:07]}  g6 {[%clk 0:00:51]} 26. fxg6 {[%clk 0:01:02]}  Qxf3 {[%clk 0:00:52]} 27. gxf3 {[%clk 0:01:02]}  fxg6 {[%clk 0:00:53]} 28. Kg2 {[%clk 0:01:03]}  Kf7 {[%clk 0:00:38]} 29. Ra7 {[%clk 0:00:55]}  Rc8 {[%clk 0:00:38]} 30. Ba3 {[%clk 0:00:52]}  Ke6 {[%clk 0:00:38]} 31. Bb4 {[%clk 0:00:52]}  Bf4 {[%clk 0:00:29]} 32. Kf1 {[%clk 0:00:51]}  Kd7 {[%clk 0:00:26]} 33. Ke2 {[%clk 0:00:51]}  Kc6 {[%clk 0:00:27]} 34. Bd2 {[%clk 0:00:49]}  Bxd2 {[%clk 0:00:23]} 35. Kxd2 {[%clk 0:00:49]}  Rf8 {[%clk 0:00:21]} 36. Ke2 {[%clk 0:00:50]}  Rf5 {[%clk 0:00:21]} 37. Ra8 {[%clk 0:00:48]}  g5 {[%clk 0:00:17]} 38. Rg8 {[%clk 0:00:45]}  Kc5 {[%clk 0:00:17]} 39. Rg7 {[%clk 0:00:45]}  Kb6 {[%clk 0:00:14]} 40. Rh7 {[%clk 0:00:41]}  Kc6 {[%clk 0:00:15]} 41. Rg7 {[%clk 0:00:39]}  Kb6 {[%clk 0:00:15]} 42. b4 {[%clk 0:00:39]}  c6 {[%clk 0:00:12]} 43. Rg6 {[%clk 0:00:34]}  d5 {[%clk 0:00:10]} 44. Re6 {[%clk 0:00:34]}  Kb5 {[%clk 0:00:10]} 45. Rg6 {[%clk 0:00:34]}  Kb6 {[%clk 0:00:09]} 46. Rh6 {[%clk 0:00:30]}  Kb5 {[%clk 0:00:09]} 47. Re6 {[%clk 0:00:28]}  Kb6 {[%clk 0:00:08]} 48. Re8 {[%clk 0:00:28]}  Kb5 {[%clk 0:00:07]} 49. Rb8+ {[%clk 0:00:28]}  Ka6 {[%clk 0:00:07]} 50. b5+ {[%clk 0:00:23]}  cxb5 {[%clk 0:00:07]} 51. Rd8 {[%clk 0:00:23]}  e4 {[%clk 0:00:03]} 52. dxe4 {[%clk 0:00:23]}  dxe4 {[%clk 0:00:04]} 53. fxe4 {[%clk 0:00:23]}  Rc5 {[%clk 0:00:05]} 54. Kd2 {[%clk 0:00:16]}  Rc3 {[%clk 0:00:05]} 55. Rd5 {[%clk 0:00:15]}  Rxh3 {[%clk 0:00:03]} 56. Rxg5 {[%clk 0:00:15]}  Rf3 {[%clk 0:00:04]} 57. Ke2 {[%clk 0:00:15]}  Rc3 {[%clk 0:00:04]} 58. f4 {[%clk 0:00:15]}  h3 {[%clk 0:00:02]} 59. e5 {[%clk 0:00:14]}  Kb6 {[%clk 0:00:02]} 60. Rh5 {[%clk 0:00:13]}  Kc6 {[%clk 0:00:02]} 61. Kd2 {[%clk 0:00:08]}  Kd5 {[%clk 0:00:02]} 62. Rh6 {[%clk 0:00:07]}  Rg3 {[%clk 0:00:02]} 63. e6 {[%clk 0:00:05]} 1-0


[Site "https://www.chess.com"]

[Event "Titled Tuesday Blitz June 22 2021"]
[White "Kamsky, Gata"]
[Black "Papasimakopoulos, Alexandros"]
[WhiteFideId "2000024"]
[BlackFideId "4244125"]
[WhiteElo "2644"]
[BlackElo "2352"]
[Result "1-0"]
[Round "10"]
[TimeControl "180+1"]
[Date "2021.06.22"]
[WhiteClock "0:00:18"]
[BlackClock "0:00:13"]

1. d4 {[%clk 0:03:00]}  e6 {[%clk 0:02:59]} 2. Bf4 {[%clk 0:02:58]}  Nf6 {[%clk 0:02:55]} 3. Nf3 {[%clk 0:02:56]}  d5 {[%clk 0:02:51]} 4. e3 {[%clk 0:02:55]}  Bd6 {[%clk 0:02:51]} 5. Bg3 {[%clk 0:02:55]}  Qe7 {[%clk 0:02:49]} 6. c4 {[%clk 0:02:53]}  c6 {[%clk 0:02:49]} 7. Nc3 {[%clk 0:02:53]}  Nbd7 {[%clk 0:02:49]} 8. Bd3 {[%clk 0:02:50]}  dxc4 {[%clk 0:02:42]} 9. Bxc4 {[%clk 0:02:50]}  O-O {[%clk 0:02:36]} 10. O-O {[%clk 0:02:50]}  Bxg3 {[%clk 0:02:22]} 11. hxg3 {[%clk 0:02:49]}  e5 {[%clk 0:02:23]} 12. e4 {[%clk 0:02:15]}  Rd8 {[%clk 0:02:12]} 13. d5 {[%clk 0:01:49]}  Nb6 {[%clk 0:02:10]} 14. Bb3 {[%clk 0:01:19]}  cxd5 {[%clk 0:02:07]} 15. exd5 {[%clk 0:01:15]}  Bg4 {[%clk 0:02:00]} 16. Re1 {[%clk 0:01:14]}  e4 {[%clk 0:01:58]} 17. Qd4 {[%clk 0:01:13]}  Bf5 {[%clk 0:01:23]} 18. Nh4 {[%clk 0:01:03]}  Qd7 {[%clk 0:01:23]} 19. Nxf5 {[%clk 0:00:53]}  Qxf5 {[%clk 0:01:23]} 20. Rad1 {[%clk 0:00:48]}  Re8 {[%clk 0:01:18]} 21. d6 {[%clk 0:00:47]}  Rad8 {[%clk 0:01:18]} 22. Bc2 {[%clk 0:00:39]}  Ng4 {[%clk 0:01:10]} 23. Rxe4 {[%clk 0:00:34]}  Rxe4 {[%clk 0:01:10]} 24. Bxe4 {[%clk 0:00:21]}  Qh5 {[%clk 0:01:08]} 25. Bf3 {[%clk 0:00:20]}  Qh2+ {[%clk 0:01:06]} 26. Kf1 {[%clk 0:00:20]}  Re8 {[%clk 0:00:46]} 27. Ne4 {[%clk 0:00:19]}  f5 {[%clk 0:00:46]} 28. d7 {[%clk 0:00:19]}  Rd8 {[%clk 0:00:38]} 29. Bxg4 {[%clk 0:00:19]}  fxg4 {[%clk 0:00:30]} 30. Qe5 {[%clk 0:00:19]}  Nxd7 {[%clk 0:00:15]} 31. Rxd7 {[%clk 0:00:18]}  Rxd7 {[%clk 0:00:13]} 32. Qe8# {[%clk 0:00:18]} 1-0


[Site "https://www.chess.com"]

[Event "Titled Tuesday Blitz June 22 2021"]
[White "Khubukshanov, Erdem"]
[Black "Makhnev, Denis"]
[WhiteFideId "54114527"]
[BlackFideId "13707647"]
[WhiteElo "2222"]
[BlackElo "2549"]
[Result "1-0"]
[Round "10"]
[TimeControl "180+1"]
[Date "2021.06.22"]
[WhiteClock "0:01:43"]
[BlackClock "0:01:31"]

1. e4 {[%clk 0:02:58]}  c6 {[%clk 0:02:57]} 2. d4 {[%clk 0:02:58]}  d5 {[%clk 0:02:57]} 3. e5 {[%clk 0:02:58]}  c5 {[%clk 0:02:57]} 4. dxc5 {[%clk 0:02:58]}  Nc6 {[%clk 0:02:56]} 5. Nf3 {[%clk 0:02:57]}  Bg4 {[%clk 0:02:55]} 6. c3 {[%clk 0:02:57]}  e6 {[%clk 0:02:54]} 7. Be3 {[%clk 0:02:51]}  Bxf3 {[%clk 0:02:51]} 8. Qxf3 {[%clk 0:02:50]}  Nxe5 {[%clk 0:02:51]} 9. Bb5+ {[%clk 0:02:50]}  Nc6 {[%clk 0:02:50]} 10. c4 {[%clk 0:02:46]}  a6 {[%clk 0:02:43]} 11. Ba4 {[%clk 0:02:44]}  Nf6 {[%clk 0:02:42]} 12. Nc3 {[%clk 0:02:40]}  Qa5 {[%clk 0:02:35]} 13. O-O {[%clk 0:02:26]}  Bxc5 {[%clk 0:02:34]} 14. cxd5 {[%clk 0:02:25]}  exd5 {[%clk 0:02:33]} 15. Nxd5 {[%clk 0:02:19]}  Bxe3 {[%clk 0:01:48]} 16. Nxf6+ {[%clk 0:01:45]}  gxf6 {[%clk 0:01:48]} 17. Bxc6+ {[%clk 0:01:44]}  bxc6 {[%clk 0:01:47]} 18. Qxc6+ {[%clk 0:01:44]}  Ke7 {[%clk 0:01:31]} 19. Rfe1 {[%clk 0:01:43]} 1-0


[Site "https://www.chess.com"]

[Event "Titled Tuesday Blitz June 22 2021"]
[White "Korobov, Anton"]
[Black "Bortnyk, Olexandr"]
[WhiteFideId "14105730"]
[BlackFideId "14120828"]
[WhiteElo "2668"]
[BlackElo "2723"]
[Result "1/2-1/2"]
[Round "10"]
[TimeControl "180+1"]
[Date "2021.06.22"]
[WhiteClock "0:01:13"]
[BlackClock "0:00:36"]

1. d4 {[%clk 0:03:00]}  d6 {[%clk 0:03:00]} 2. Nf3 {[%clk 0:03:00]}  Nf6 {[%clk 0:03:00]} 3. c4 {[%clk 0:03:00]}  g6 {[%clk 0:03:01]} 4. Nc3 {[%clk 0:03:00]}  Bf5 {[%clk 0:03:01]} 5. h3 {[%clk 0:02:50]}  Ne4 {[%clk 0:02:20]} 6. Nxe4 {[%clk 0:02:49]}  Bxe4 {[%clk 0:02:20]} 7. Ng5 {[%clk 0:02:46]}  Bf5 {[%clk 0:02:14]} 8. e4 {[%clk 0:02:46]}  Bd7 {[%clk 0:02:14]} 9. Bd3 {[%clk 0:02:26]}  Bg7 {[%clk 0:02:14]} 10. Nf3 {[%clk 0:02:25]}  c5 {[%clk 0:02:10]} 11. d5 {[%clk 0:02:19]}  b5 {[%clk 0:01:44]} 12. cxb5 {[%clk 0:02:19]}  a6 {[%clk 0:01:44]} 13. bxa6 {[%clk 0:02:18]}  Nxa6 {[%clk 0:01:44]} 14. O-O {[%clk 0:02:16]}  O-O {[%clk 0:01:45]} 15. Re1 {[%clk 0:02:11]}  Qb6 {[%clk 0:01:42]} 16. e5 {[%clk 0:02:11]}  Nb4 {[%clk 0:01:42]} 17. Bc4 {[%clk 0:02:02]}  Bb5 {[%clk 0:01:25]} 18. b3 {[%clk 0:01:50]}  Rxa2 {[%clk 0:00:58]} 19. Rxa2 {[%clk 0:01:47]}  Nxa2 {[%clk 0:00:59]} 20. Bg5 {[%clk 0:01:47]}  Re8 {[%clk 0:00:37]} 21. exd6 {[%clk 0:01:43]}  Nc3 {[%clk 0:00:37]} 22. Qc2 {[%clk 0:01:23]}  exd6 {[%clk 0:00:36]} 23. Rxe8+ {[%clk 0:01:14]}  Bxe8 {[%clk 0:00:37]} 24. Bd2 {[%clk 0:01:13]}  Nb5 {[%clk 0:00:36]} 25. Qe4 {[%clk 0:01:13]} 1/2-1/2


[Site "https://www.chess.com"]